Cogmind - Beta 14 @@@ ROGUE MODE // 2024.10.11 @ 18:33:34 Player: N.W.L Result: Self-destructed Performance ------------- Evolutions (2) 1000 Regions Visited (5) 1000 Robots Destroyed (19) 95 Value Destroyed (386) 386 Prototype IDs (24) 480 Alien Tech Used (0) 0 Bonus (360) 360 TOTAL SCORE: 3321 Bonus ------- Follower Combat Kills 60 Aligned with FarCom 300 Cogmind --------- Core Integrity 550/550 Matter 99/300 Energy 248/250 System Corruption 0% Temperature Cool (2) Movement Walking (90) Location -8/Materials Parts ------- > --- POWER (1) -------- Ion Engine > --- PROPULSION (3) --- Potential Leg Potential Leg > --- UTILITY (4) ------ Improved Heat Sink High-capacity Storage Unit > --- WEAPON (3) ------- Light Cannon Light Cannon > --- INVENTORY (20) --- Small Storage Unit High-capacity Storage Unit Salvage Targeting Computer Medium Armor Plating Sensor Drone Bay (20/20) Beamcaster Light Cannon Grenade Launcher Rocket Launcher Mining Laser Peak State ------------ > --- POWER ------------ Ion Engine > --- PROPULSION ------- Potential Leg Potential Leg > --- UTILITY ---------- Improved Heat Sink Small Storage Unit > --- WEAPON ----------- Light Cannon Light Cannon > --- INVENTORY -------- High-capacity Storage Unit High-capacity Storage Unit Sensor Drone Bay Beamcaster Light Cannon Grenade Launcher Rocket Launcher Mining Laser [Rating: 29] Favorites ----------- Power Ion Engine Engine Ion Engine Propulsion Light Treads Treads Light Treads Leg Potential Leg Utility Small Storage Unit Device Improved Heat Sink Storage Small Storage Unit Weapon Light Cannon Energy Gun Small Laser Ballistic Gun Light Assault Rifle Ballistic Cannon Light Cannon Launcher Grenade Launcher Build | -11 -10 -10 -10 -9 -8 ------- Run | Yrd Mat Min Exi Min Mat Slots Evolved 4 | . . . . . 4 Power . | . . . . . . Propulsion 1 | . . . . . 1 Utility 2 | . . . . . 2 Weapon 1 | . . . . . 1 Parts Attached 16 | . 5 6 2 3 . Power 1 | . . 1 . . . Engine 1 | . . 1 . . . Core . | . . . . . . Reactor . | . . . . . . Propulsion 4 | . 2 . 2 . . Treads 2 | . 2 . . . . Leg 2 | . . . 2 . . Wheel . | . . . . . . Hover . | . . . . . . Flight . | . . . . . . Utility 4 | . . 3 . 1 . Device 3 | . . 3 . . . Storage 1 | . . . . 1 . Processor . | . . . . . . Hackware . | . . . . . . Protection . | . . . . . . Artifact . | . . . . . . Weapon 7 | . 3 2 . 2 . Energy Gun . | . . . . . . Energy Cannon . | . . . . . . Ballistic Gun 1 | . 1 . . . . Ballistic Cannon 4 | . 2 1 . 1 . Launcher 2 | . . 1 . 1 . Special Weapon . | . . . . . . Impact Weapon . | . . . . . . Slashing Weapon . | . . . . . . Piercing Weapon . | . . . . . . Special Melee Weapon . | . . . . . . Unidentified Prototypes 1 | . . 1 . . . Parts Lost 1 | . 1 . . . . Power . | . . . . . . Propulsion . | . . . . . . Utility . | . . . . . . Weapon 1 | . 1 . . . . Highest Loss Streak 1 | . 1 . . . . To Critical Strikes . | . . . . . . Average Slot Usage (%) 94 | . 85 95 100 100 63 Engine 13 | . 14 14 14 14 9 Treads 22 | . 26 28 18 . . Leg 5 | . 2 . 9 28 18 Device 8 | . . 10 14 14 9 Storage 13 | . 14 14 14 14 9 Energy Gun 1 | . 7 . . . . Ballistic Cannon 24 | . 16 27 28 23 18 Peak Build Rating 29 | . 6 15 28 29 29 Average Rating 11 | . 5 8 15 28 29 On Entrance 14 | 6 6 6 10 28 29 Naked Turns . | . . . . . . Heaviest Build 52 | 13 16 17 17 52 52 Greatest Support 60 | 20 40 40 60 60 60 Greatest Overweight (x) . | . . . . . . Average Overweight (x) . | . . . . . . Largest Inventory Capacity 20 | . 8 8 8 20 20 Average Capacity 8 | . 8 8 8 14 20 Most Carried 10 | . 8 8 8 10 10 Average Carried 6 | . 6 6 7 8 10 Final Capacity 20 | 8 8 8 8 20 20 Final Carried 10 | 6 6 8 7 10 10 Class Distribution -------------------- 100% | Mutant Dominant Class ---------------- Mutant | -10/Materials Mutant | -10/Mines Mutant | -10/Exiles Mutant | -9/Mines Mutant | -8/Materials Resources | -11 -10 -10 -10 -9 -8 ----------- Run | Yrd Mat Min Exi Min Mat Matter Collected 433 | 200 98 122 . 13 . Remotely . | . . . . . . Salvage Created 428 | . 267 95 . 66 . Parts 28 | . 19 1 . 8 . Haulers Intercepted 1 | . 1 . . . . Recyclers Shooed 1 | . 1 . . . . Parts Field Recycled . | . . . . . . Retrieved Matter . | . . . . . . Parts Self-Destructed . | . . . . . . Prevented . | . . . . . . Kills | -11 -10 -10 -10 -9 -8 ------- Run | Yrd Mat Min Exi Min Mat Combat Hostiles Destroyed 16 | . 7 3 . 6 . Guns 7 | . 7 . . . . Cannons 2 | . . . . 2 . AOE 7 | . . 3 . 4 . Classes Destroyed 6 | . 4 1 . 1 . Hauler 1 | . 1 . . . . Recycler 1 | . . 1 . . . Watcher 1 | . 1 . . . . Swarmer 10 | . 3 3 . 4 . Grunt 4 | . 4 . . . . Sentry 2 | . . . . 2 . Best Kill Streak 5 | . 5 3 . 5 . Combat Bots Only 5 | . 5 3 . 5 . Max Kills in Single Turn 2 | . 1 2 . 2 . Gunslinging . | . . . . . . Exploded 2 | . . 2 . 2 . Melee . | . . . . . . Uniques/NPCs Destroyed . | . . . . . . Combat | -11 -10 -10 -10 -9 -8 -------- Run | Yrd Mat Min Exi Min Mat Hostile Shots Fired 75 | . 44 9 . 22 . Missed 27 | . 15 3 . 9 . Damage Taken 620 | . 350 61 . 209 . Core 115 | . 68 7 . 40 . Absorbed by Shields . | . . . . . . Core Remaining (%) 77 | 100 . . . 54 . Volleys Fired 53 | . 27 9 . 17 . Largest 2 | . 2 2 . 2 . Hottest 80 | . 80 70 . 70 . Shots Fired 93 | . 53 13 . 27 . Gun 43 | . 43 . . . . Cannon 39 | . 10 8 . 21 . Launcher 11 | . . 5 . 6 . Special . | . . . . . . Kinetic 52 | . 23 8 . 21 . Thermal 22 | . 22 . . . . Explosive 11 | . . 5 . 6 . Electromagnetic 8 | . 8 . . . . Robot Hit Streak 7 | . 7 5 . 7 . Robot Miss Streak 3 | . 3 . . 2 . Penetration Max . | . . . . . . Secondary Targets 2 | . 2 . . . . Max Gunslinging Chain 1 | . 1 . . . . Shots Hit Robots 56 | . 37 4 . 15 . Core Hits 30 | . 17 3 . 10 . Critical Kills . | . . . . . . Critical Parts Destroyed 1 | . 1 . . . . Critical Strikes 2 | . 1 . . 1 . Destroy 1 | . 1 . . . . Blast 1 | . . . . 1 . Melee Attacks . | . . . . . . Impact . | . . . . . . Slashing . | . . . . . . Piercing . | . . . . . . Sneak Attacks . | . . . . . . Combat Hostiles . | . . . . . . Follow-up Attacks . | . . . . . . Damage Inflicted 1161 | . 433 316 . 412 . Guns 357 | . 357 . . . . Cannons 356 | . 76 71 . 209 . Explosions 448 | . . 245 . 203 . Melee . | . . . . . . Ramming . | . . . . . . Kinetic 439 | . 159 71 . 209 . Thermal 191 | . 191 . . . . Explosive 448 | . . 245 . 203 . Electromagnetic 83 | . 83 . . . . Impact . | . . . . . . Slashing . | . . . . . . Piercing . | . . . . . . Highest Corruption . | . . . . . . Average Corruption . | . . . . . . Corruption Purged . | . . . . . . Corruption Blocked . | . . . . . . Overload Shots . | . . . . . . Overflow Damage 35 | . . 35 . . . Projectiles 10 | . . 10 . . . Explosions 25 | . . 25 . . . Melee . | . . . . . . Knockbacks 1 | . . 1 . . . Impact . | . . . . . . Kinetic 1 | . . 1 . . . Secondary . | . . . . . . Self-Inflicted Damage 77 | . . 14 . 63 . Shots 3 | . . 1 . 2 . Rammed . | . . . . . . Targets Rammed . | . . . . . . Kicked . | . . . . . . Crushed . | . . . . . . Highest Temperature 218 | . 218 . . . . Average Temperature 81 | . 81 . . . . Received Heat Transfer 180 | . 156 . . 24 . Siege Activations . | . . . . . . Robots Corrupted . | . . . . . . Combat Hostiles . | . . . . . . Parts Fried . | . . . . . . Impact Corruptions . | . . . . . . Robots Melted . | . . . . . . Combat Hostiles . | . . . . . . Parts Melted 1 | . 1 . . . . Heat Transferred 425 | . 425 . . . . Parts Sabotaged . | . . . . . . Parts Stolen . | . . . . . . Parts Stripped . | . . . . . . Power Chain Reactions . | . . . . . . Alert | -11 -10 -10 -10 -9 -8 ------- Run | Yrd Mat Min Exi Min Mat Peak Influence 203 | . 189 203 . 172 66 Initial 73 | . . 73 . . 66 Average 104 | . 154 79 . 97 66 Maximum Alert Level 1 | . . 1 . . . Low Security (%) 93 | . 100 89 . 100 100 Level 1 6 | . . 10 . . . Level 2 . | . . . . . . Level 3 . | . . . . . . Level 4 . | . . . . . . Level 5 . | . . . . . . High Security . | . . . . . . Max Security . | . . . . . . Squads Dispatched . | . . . . . . Investigation . | . . . . . . Extermination . | . . . . . . Reinforcement . | . . . . . . Assault . | . . . . . . Garrison . | . . . . . . Intercept . | . . . . . . Searches Triggered . | . . . . . . Construction Impeded . | . . . . . . Haulers Reinforced . | . . . . . . Active Scanning Responses . | . . . . . . Cargo Convoy Interrupts . | . . . . . . Stealth | -11 -10 -10 -10 -9 -8 --------- Run | Yrd Mat Min Exi Min Mat Distress Signals . | . . . . . . Communications Jammed . | . . . . . . Distress Signals . | . . . . . . Times Spotted 22 | . 9 7 . 6 . Peak Tracking Total 5 | . 5 3 . 4 . Tactical Retreats . | . . . . . . Traps | -11 -10 -10 -10 -9 -8 ------- Run | Yrd Mat Min Exi Min Mat Traps Triggered . | . . . . . . Indirectly . | . . . . . . Trap Hack Attempts . | . . . . . . Triggered . | . . . . . . Disarmed . | . . . . . . Reprogrammed . | . . . . . . Reused . | . . . . . . Traps Extracted . | . . . . . . Installed . | . . . . . . Triggered . | . . . . . . Machines | -11 -10 -10 -10 -9 -8 ---------- Run | Yrd Mat Min Exi Min Mat Machines Disabled 3 | . 1 . . 2 . Max in Single Turn 1 | . 1 . . 1 . Machines Repaired . | . . . . . . Machines Dismantled . | . . . . . . Machines Sabotaged . | . . . . . . Overloaded Fab Kills . | . . . . . . Hacking | -11 -10 -10 -10 -9 -8 --------- Run | Yrd Mat Min Exi Min Mat Machines Accessed 3 | . . 1 2 . . Terminals . | . . . . . . Fabricators . | . . . . . . Repair Stations . | . . . . . . Recycling Units . | . . . . . . Scanalyzers . | . . . . . . Garrison Access . | . . . . . . Total Hacks 3 | . . 1 2 . . Successful 3 | . . 1 2 . . Failed . | . . . . . . Catastrophic . | . . . . . . Database Lockouts . | . . . . . . Manual 1 | . . . 1 . . Terminals . | . . . . . . Fabricators . | . . . . . . Repair Stations . | . . . . . . Recycling Units . | . . . . . . Scanalyzers . | . . . . . . Garrison Access . | . . . . . . Terminal Hacks 3 | . . 1 2 . . Record 1 | . . . 1 . . Open Door 1 | . . 1 . . . Derelict Proto ID Bank 1 | . . . 1 . . Fabricator Hacks . | . . . . . . Repair Station Hacks . | . . . . . . Recycling Unit Hacks . | . . . . . . Scanalyzer . | . . . . . . Garrison Access Hacks . | . . . . . . Unauthorized Hacks . | . . . . . . Terminals . | . . . . . . Fabricators . | . . . . . . Repair Stations . | . . . . . . Recycling Units . | . . . . . . Scanalyzers . | . . . . . . Garrison Access . | . . . . . . Data Cores Recovered . | . . . . . . Used . | . . . . . . Hacking Detections . | . . . . . . Full Trace Events . | . . . . . . Feedback Events . | . . . . . . Feedback Blocked . | . . . . . . Robot Schematics Acquired . | . . . . . . Robots Built . | . . . . . . Authchips . | . . . . . . Time . | . . . . . . Total Robot Build Rating . | . . . . . . Part Schematics Acquired . | . . . . . . Parts Built . | . . . . . . Authchips . | . . . . . . Time . | . . . . . . Total Part Build Rating . | . . . . . . Parts Repaired . | . . . . . . Time . | . . . . . . Parts Recycled . | . . . . . . Recycled Matter . | . . . . . . Retrieved Matter . | . . . . . . Retrieved Components . | . . . . . . Parts Scanalyzed . | . . . . . . Part Schematics Acquired . | . . . . . . Parts Damaged . | . . . . . . Bothacking | -11 -10 -10 -10 -9 -8 ------------ Run | Yrd Mat Min Exi Min Mat Used RIF Installer . | . . . . . . Robots Hacked . | . . . . . . Non-combat . | . . . . . . Combat . | . . . . . . Robot Hacks Applied . | . . . . . . Relay Couplers Released . | . . . . . . Fabnet Peak Effective % . | . . . . . . Robots Rewired . | . . . . . . Allies Hacked . | . . . . . . Hacks Repelled . | . . . . . . Allies | -11 -10 -10 -10 -9 -8 -------- Run | Yrd Mat Min Exi Min Mat Total Allies 3 | . . 3 . . . Largest Group 2 | . . 2 2 . . Highest-Rated Group 49 | . . 49 49 . . Highest-Rated Ally 31 | . . 31 31 . . Total Orders . | . . . . . . Ally Attacks 4 | . . 4 . . . Total Damage 84 | . . 84 . . . Kills 2 | . . 2 . . . Allies Corrupted . | . . . . . . Allies Melted . | . . . . . . Intel | -11 -10 -10 -10 -9 -8 ------- Run | Yrd Mat Min Exi Min Mat Robot Analysis Total . | . . . . . . Derelict Logs Recovered 1 | . . 1 . . . Drone Launches . | . . . . . . Drone Recoveries . | . . . . . . Exploration | -11 -10 -10 -10 -9 -8 ------------- Run | Yrd Mat Min Exi Min Mat Turns Passed 1475 | . 351 659 279 176 10 Spaces Moved 903 | 1 166 380 214 131 11 Core . | . . . . . . Treads 650 | . 153 380 117 . . Legs 253 | 1 13 . 97 131 11 Wheels . | . . . . . . Hover . | . . . . . . Flight . | . . . . . . Fastest Speed 90 | 120 120 160 90 90 90 Average Speed 140 | 120 156 160 128 90 90 Slowest Speed 160 | 120 160 160 160 90 90 Overloaded Moves . | . . . . . . Propulsion Burnouts . | . . . . . . Robots Hopped . | . . . . . . Cave-ins Triggered . | . . . . . . Exploration Rate (%) 32 | 2 31 65 59 32 3 Regions Visited 5 Branch Regions 3 Pre-discovered Areas 2 | . . . 1 1 . Known Exits Taken . | . . . . . . Unknown Exits Taken 5 | 1 1 1 1 1 . Scrap Searched 2 | . . 2 . . . Spaces Dug 10 | . . 10 . . . Terrain Destroyed 67 | . . 40 . 27 . Melee . | . . . . . . Projectile . | . . . . . . AOE 67 | . . 40 . 27 . Terrain Rammed . | . . . . . . Walls Destroyed . | . . . . . . Machines Disabled . | . . . . . . Actions | -11 -10 -10 -10 -9 -8 --------- Run | Yrd Mat Min Exi Min Mat Total 1013 | . 208 416 218 160 11 Wait 25 | . . 18 . 7 . Move 898 | . 165 379 213 130 11 Hop . | . . . . . . Pick Up 9 | . 4 2 . 3 . Fast Attach 6 | . 2 2 2 . . Attach 1 | . 1 . . . . Detach 3 | . 2 1 . . . Swap 9 | . 2 4 . 3 . Drop 9 | . 5 1 3 . . Fire 53 | . 27 9 . 17 . Melee . | . . . . . . Ram . | . . . . . . Kick . | . . . . . . Crush . | . . . . . . Escape Stasis . | . . . . . . Rewire . | . . . . . . Trap . | . . . . . . Miscellaneous . | . . . . . . Route ------- -11/Scrapyard -10/Materials -10/Mines (discovered 3 exits: [*Mat x2] / *Exi) -10/Exiles -9/Mines -8/Materials History --------- Turn | Location | Event 1 | -11/Scrapyard | Discovered new exit (range 0) 1 | -11/Scrapyard | Entered Materials 305 | -10/Materials | Build established: Mutant 313 | -10/Materials | Discovered new exit (range 11) 352 | -10/Materials | Entered Mines 467 | -10/Mines | Received a Mining Laser from a helpful Derelict 573 | -10/Mines | Learned Materials terminal intel 794 | -10/Mines | Discovered new exit (range 11) 879 | -10/Mines | Discovered new exit (range 6) 904 | -10/Mines | Found the Drone Emporium 920 | -10/Mines | Found Prototype Device 920 | -10/Mines | Identified Sensor Drone Bay 992 | -10/Mines | Deemed a non-threat by the Exiles lab entrance 992 | -10/Mines | Discovered new exit (range 5) 1011 | -10/Mines | Entered Exiles 1011 | -10/Exiles | Accompanied by 2 allies 1041 | -10/Exiles | Led the pair of lost Derelicts to a safe place 1048 | -10/Exiles | Met 8R-AWN 1079 | -10/Exiles | Met EX-HEX 1123 | -10/Exiles | Met EX-BIN 1152 | -10/Exiles | Aligned with FarCom system 1154 | -10/Exiles | Given EX-Vault access code 1191 | -10/Exiles | Opened EX-Vault 1199 | -10/Exiles | Found Potential Leg 1202 | -10/Exiles | Found Potential Leg 1223 | -10/Exiles | Warned to stay clear of 0b10 Research branches 1248 | -10/Exiles | Met EX-DEC 1253 | -10/Exiles | Learned location of Zion (-6) 1281 | -10/Exiles | Discovered new exit (range 10) 1290 | -10/Exiles | Left Exiles lab with Potential Leg 1290 | -10/Exiles | Entered Mines 1291 | -9/Mines | Learned location of Storage (-8) 1462 | -9/Mines | Discovered new exit (range 6) 1466 | -9/Mines | Entered Materials 1466 | -8/Materials | Evolved 4 slots: Propulsion x1, Utility x2, Weapon x1 1467 | -8/Materials | Loaded intel: 12 terminal locations 1476 | -8/Materials | Self-destructed Last Messages --------------- 01325_ Y-45 Defender suffers critical hit (Blast). 01325_ Y-45 Defender destroyed. 01341_ Machine disabled. 01357_ Y-45 Defender destroyed. 01362_ Acquired 7 matter. 01364_ Acquired 6 matter. 01366_ Acquired Rocket Launcher. 01370_ Acquired Med. Armor Plating. 01372_ Acquired Salvage Targeting Computer. 01383_ S-10 Pest destroyed. 01383_ Machine disabled. 01387_ S-10 Pest destroyed. 01395_ The unstable cave ceiling collapses. 01433_ K-01 Serf collects debris. 01462_ EXIT=FOUND PARAMETERS=PROPULSION+1,UTILITY+2,WEAPON+1 LOCATION=UNKNOWN GOAL=ESCAPE 01466_ Receiving FarCom transmissions... Loading Materials terminal intel (x12)... Map ----- +----------------------------------------------------+ | ?????????????????????????????????????????????????? | | ?????????????????????????????????????????????????? | | ?????????????????????????????????????????????????? | | ?????????????????????????????????????????????????? | | ?????????????????????????????????????????????????? | | ?????????????????????????????????????????????????? | | ?????????????????????????????????????????????????? | | ?????????????????????????????????????????????????? | | ?????????????????????????????????????????????????? | | ?????????????????????????????????????????????????? | | ?????????????????????????????????????????????????? | | ??????????????Y??????????????????????????????????? | | ?????????????????????????????????????????????????? | | ?????????????????????????????????????????????????? | | ?????????????????????????????????????????????????? | | ????????????????????????##+###???????????????????? | | ???????????????????????? ???????????????????? | | ???????????????????????? ????????????????????? | | ???????????????????????? ????????????????????? | | ????????????????????????# #????????????????????? | | ????????????????????????# #????????????????????? | | ????????????????????????# #????????Y???????????? | | ????????????????????????# #????????????????????? | | ??????????????#######???# #????????????????????? | | ??????????????# ??# #????????????????????? | | ??????????????# ?##@ ##???????????????????? | | ??????????????# # ] #???????????????????? | | ??????????????# # #???????????????????? | | ???????????Y??# + T #???????????????????? | | ??????????????# # #???????????????????? | | ??????????????# # #??T????????????????? | | ??????????????# ?## ##???????????????????? | | ??????????????# ??# #????????????????????? | | ??????????????#######???# #????????????????????? | | ????????????????????????# #????????????????????? | | ????????????????????????# #????????????????????? | | ????????????????????????#####????????????????????? | | ?????????????????????????????????????????????????? | | ?????????????????????????????????????????????????? | | ?????????????????????????????????????????????????? | | ?????????????????????????????????????????????????? | | ?????????????????????????????????????????????????? | | | | | | | | | | | | | | | | | +----------------------------------------------------+ Best States ------------- Heat Dissipation 45 Energy Generation 10 Energy Capacity 250 Matter Stores 300 Matter Capacity 300 Sight Range 16 Terrain Scan Density 10 Evasion (%) 57 Recoil Reduction 2 Item Schematics ----------------- None Robot Schematics ------------------ None Fabricated ------------ Nothing Alien Tech Used ----------------- None Achievements -------------- None Challenges ------------ None Game ------ Seed QuantumLobotomyPenetrator Manual? 0 Play Time 00:07:33 Cumulative 330.3 hours Start 2024.10.11 @ 18:26:05 End 2024.10.11 @ 18:33:34 Sessions 3 Manual Loads 0 Difficulty Rogue Special Mode None Game No. 165 Rogue 165 Adventurer 0 Explorer 0 Win Type - Total 9 Types 5/1/3/0/0/0/0/0/0 Lore% 83 Gallery% 87 Achievement% 73 Wizard Run 0 Options --------- Layout 0 ASCII 0 Keyboard 0 Movement Mouse Keybinds 0 Fullscreen 2 Font 12/Smallcaps Map View 83x54 Zoom Use 0% Tactical HUD 1 Map Filters NONE Filters NONE Steam 1 RUN: 1d1fce98-a2c2-4ba8-9d24-2c95d9950bd4